Workbook

Sheet Eingabe (hidden)
B2: Zeitmessung Seifenkisten Derby Mettingen
B5: V6.3
C6: Bahn 1 PR | E6: Bahn 2 PB
B8: Lauf | C8: 4 | E8: 4
B10: Start-Nr | C10: 708 | D10: 709 | E10: 709
B12: Zeit | C12: 37.8 | E12: 37.9
C14: Hauptlauf / Endlauf ? | E14: Endlauf
B15: Endlauf-Daten übertragen und gespeichet
B17: =LOOKUP(C10,Gesamt!A4:A1000,Gesamt!B4:B1000) -> EXL18 | F17: =LOOKUP(E10,Gesamt!A4:A1000,Gesamt!B4:B1000) -> EXL18
B19: =LOOKUP(C10,Gesamt!A4:A1000,Gesamt!E4:E1000) -> Dominik | E19: =LOOKUP(E10,Gesamt!A4:A1000,Gesamt!E4:E1000) -> Florian
B20: =LOOKUP(C10,Gesamt!A4:A1000,Gesamt!D4:D1000) -> Leismann | E20: =LOOKUP(E10,Gesamt!A4:A1000,Gesamt!D4:D1000) -> Lange
B21: =LOOKUP(C10,Gesamt!A4:A1000,Gesamt!F4:F1000) -> Mettingen | E21: =LOOKUP(E10,Gesamt!A4:A1000,Gesamt!F4:F1000) -> Mettingen
B22: 3724 PR 00:00:37.805 | E22: 3725 PB 00:00:37.904

Sheet Gesamt (hidden)
A1: 10.06.2018 DSKD Derby Mettingen
E2: Bahn 1 | F2: Bahn 2 | G2: 1 | H2: 1 | I2: 1 | J2: 1 | K2: 1 | L2: 1 | M2: Lauf gewertet? 0 oder 1 | N2: 1 | O2: 1 | P2: 1 | Q2: 1 | R2: 1 | S2: 1
A3: Nr | B3: Klasse | C3: NRW | D3: Name | E3: Vorname | F3: Verein | G3: H1 | H3: H2 | I3: H3 | J3: H4 | K3: H5 | L3: H6 | M3: Summe | N3: E1 | O3: E2 | P3: E3 | Q3: E4 | R3: E5 | S3: E6 | T3: Summe
A4: 101 | B4: JUN | D4: Lampe | E4: Ida | F4: Mettingen | G4: 38.91 | H4: 38.81 | I4: 38.74 | J4: 39.05 | M4: =(G4*$G$2 +H4*$H$2+I4*$I$2+J4*$J$2 +K4*$K$2+L4*$L$2) -> 155.51 | N4: 38.93 | O4: 38.9 | P4: 38.79 | Q4: 38.76 | T4: =(N4*$N$2 +O4*$O$2+P4*$P$2+Q4*$Q$2 +R4*$R$2+S4*$S$2) -> 155.38
A5: 102 | B5: JUN | D5: Paschedag | E5: Mia | F5: Stromberg | G5: 38.77 | H5: 38.85 | I5: 38.69 | J5: 38.96 | M5: =(G5*$G$2 +H5*$H$2+I5*$I$2+J5*$J$2 +K5*$K$2+L5*$L$2) -> 155.27 | N5: 2 | T5: =(N5*$N$2 +O5*$O$2+P5*$P$2+Q5*$Q$2 +R5*$R$2+S5*$S$2) -> 2
A6: 103 | B6: JUN | D6: Freudenstein | E6: Romy | F6: Mettingen | G6: 38.92 | H6: 38.96 | I6: 38.73 | J6: 38.94 | M6: 155.55 | N6: 38.79 | O6: 38.73 | P6: 38.72 | Q6: 38.67 | T6: 154.91
A7: 104 | B7: JUN | D7: Schier | E7: Finn | F7: Stromberg | G7: 39.42 | H7: 39.44 | I7: 39.69 | J7: 39.74 | M7: 158.29 | T7: 0
A8: 105 | B8: JUN | D8: Bednarski | E8: Max | F8: Mettingen | M8: 0 | T8: 0
A9: 106 | B9: JUN | D9: Plath | E9: Marvin | F9: Mettingen | G9: 39.04 | H9: 39.01 | I9: 38.95 | J9: 39.32 | M9: 156.32 | N9: 39 | O9: 38.9 | P9: 38.92 | Q9: 38.92 | T9: 155.74
A10: 107 | B10: JUN | D10: Plath | E10: Johanna | F10: Mettingen | M10: 0 | T10: 0
A11: 108 | B11: JUN | D11: Pufahl | E11: Maximilian | F11: Mettingen | G11: 39.17 | H11: 39.07 | I11: 38.99 | J11: 39.26 | M11: 156.49 | N11: 39.05 | O11: 39.11 | P11: 38.94 | Q11: 39.01 | T11: 156.11
A12: 109 | B12: JUN | D12: Demleitner | E12: Angelike | F12: Bergkamen | G12: 39.29 | H12: 39.28 | I12: 39.28 | J12: 39.49 | M12: 157.34 | T12: 0
A13: 110 | B13: JUN | D13: Claus | E13: Florentina | F13: Bergkamen | G13: 39.2 | H13: 39.26 | I13: 39.45 | J13: 39.31 | M13: 157.22 | T13: 0
A14: 111 | B14: JUN | D14: Meyhoff | E14: Moritz | F14: Mettingen | G14: 38.97 | H14: 38.87 | I14: 38.99 | J14: 38.85 | M14: 155.68 | N14: 38.87 | O14: 38.97 | P14: 38.81 | Q14: 38.72 | T14: 155.37
A15: 112 | B15: JUN | D15: Gahler | E15: Hendrik | F15: Mettingen | M15: 0 | T15: 0
A16: 113 | B16: JUN | D16: Bednarski | E16: Jonathan | F16: Mettingen | M16: 0 | T16: 0
A17: 114 | B17: JUN | D17: Reutter | E17: Elisabeth | F17: Stromberg | M17: 0 | T17: 0
A18: 115 | B18: JUN | D18: Stoffers | E18: Martha | F18: Stromberg | M18: 0 | T18: 0
A19: 116 | B19: JUN | D19: Hiegemann | E19: Mathilda | F19: Stromberg | M19: 0 | T19: 0
A20: 117 | B20: JUN | D20: Ording | E20: Louisa | F20: Stromberg | G20: 39.47 | H20: 39.44 | I20: 39.64 | J20: 39.48 | M20: 158.03 | T20: 0
A21: 118 | B21: JUN | D21: Pflug | E21: Fabian | F21: Stromberg | M21: 0 | T21: 0
A22: 119 | B22: JUN | D22: Krüger | E22: Michelle | F22: Billerbeck | M22: 0 | T22: 0
A23: 120 | B23: JUN | D23: Enders | E23: Julius | F23: Billerbeck | M23: 0 | T23: 0
A24: 121 | B24: JUN | D24: Stoffers | E24: Christina | F24: Stromberg | M24: 0 | T24: 0
A25: 122 | B25: JUN | D25: Grützner | E25: Lennox | F25: Billerbeck | M25: 0 | T25: 0
A26: 123 | B26: JUN | D26: Paschedag | E26: Lena | F26: Stromberg | M26: 0 | T26: 0
A27: 124 | B27: JUN | D27: Crook | E27: Florian | F27: Mettingen | G27: 38.96 | H27: 38.89 | I27: 38.94 | J27: 39.11 | M27: 155.9 | N27: 38.85 | O27: 38.73 | P27: 38.91 | Q27: 38.62 | T27: 155.11
A28: 125 | B28: JUN | D28: Meyhoff | E28: Finn | F28: Mettingen | G28: 38.83 | H28: 38.88 | I28: 38.99 | J28: 39.05 | M28: 155.75 | N28: 38.92 | O28: 38.9 | P28: 38.79 | Q28: 38.79 | T28: 155.4
A29: 126 | B29: JUN | M29: 0 | T29: 0
A30: 127 | B30: JUN | D30: Meister | E30: Till | F30: Mettingen | G30: 39.6 | H30: 39.27 | I30: 39.79 | J30: 39.59 | M30: 158.25 | N30: 39.4 | O30: 39.14 | P30: 39.49 | Q30: 39.19 | T30: 157.22
A31: 128 | B31: JUN | M31: 0 | T31: 0
A32: 129 | B32: JUN | M32: 0 | T32: 0
A33: 130 | B33: JUN | D33: Kleinsorge | E33: Henri | F33: Mettingen | G33: 44.04 | H33: 41.76 | I33: 41.17 | J33: 40.79 | M33: 167.76 | N33: 40.53 | O33: 40.46 | P33: 40.03 | Q33: 39.75 | T33: 160.77
A34: 131 | B34: JUN | M34: 0 | T34: 0
A35: 132 | B35: JUN | M35: 0 | T35: 0
A36: 133 | B36: JUN | M36: 0 | T36: 0
A37: 134 | B37: JUN | M37: 0 | T37: 0
A38: 135 | B38: JUN | M38: 0 | T38: 0
A39: 136 | M39: 0 | T39: 0
A40: 137 | M40: 0 | T40: 0
A41: 138 | M41: 0 | T41: 0
A42: 139 | M42: 0 | T42: 0
A43: 140 | M43: 0 | T43: 0
A44: 141 | M44: 0 | T44: 0
A45: 142 | M45: 0 | T45: 0
A46: 143 | M46: 0 | T46: 0
A47: 144 | M47: 0 | T47: 0
A48: 145 | M48: 0 | T48: 0
A49: 146 | M49: 0 | T49: 0
A50: 147 | M50: 0 | T50: 0
A51: 148 | M51: 0 | T51: 0
A52: 149 | M52: 0 | T52: 0
A53: 150 | M53: 0 | T53: 0
A54: 151 | M54: 0 | T54: 0
A55: 152 | M55: 0 | T55: 0
A56: 153 | M56: 0 | T56: 0
A57: 154 | M57: 0 | T57: 0
A58: 155 | M58: 0 | T58: 0
A59: 156 | M59: 0 | T59: 0
A60: 157 | M60: 0 | T60: 0
A61: 158 | M61: 0 | T61: 0
A62: 159 | M62: 0 | T62: 0
A63: 160 | M63: 0 | T63: 0
A64: 161 | M64: 0 | T64: 0
A65: 162 | M65: 0 | T65: 0
A66: 163 | M66: 0 | T66: 0
A67: 164 | M67: 0 | T67: 0
A68: 165 | M68: 0 | T68: 0
A69: 166 | M69: =(G69*$G$2 +H69*$H$2+I69*$I$2+J69*$J$2 +K69*$K$2+L69*$L$2) -> 0 | T69: =(N69*$N$2 +O69*$O$2+P69*$P$2+Q69*$Q$2 +R69*$R$2+S69*$S$2) -> 0
A70: 167 | M70: 0 | T70: 0
A71: 168 | M71: 0 | T71: 0
A72: 169 | M72: 0 | T72: 0
A73: 170 | M73: 0 | T73: 0
A74: 171 | M74: 0 | T74: 0
A75: 172 | M75: 0 | T75: 0
A76: 173 | M76: 0 | T76: 0
A77: 174 | M77: 0 | T77: 0
A78: 175 | M78: 0 | T78: 0
A79: 176 | M79: 0 | T79: 0
A80: 177 | M80: 0 | T80: 0
A81: 178 | M81: 0 | T81: 0
A82: 179 | M82: 0 | T82: 0
A83: 180 | M83: 0 | T83: 0
A84: 181 | M84: 0 | T84: 0
A85: 182 | M85: 0 | T85: 0
A86: 183 | M86: 0 | T86: 0
A87: 184 | M87: 0 | T87: 0
A88: 185 | M88: 0 | T88: 0
A89: 186 | M89: 0 | T89: 0
A90: 187 | M90: 0 | T90: 0
A91: 188 | M91: 0 | T91: 0
A92: 189 | M92: 0 | T92: 0
A93: 190 | M93: 0 | T93: 0
A94: 191 | M94: 0 | T94: 0
A95: 192 | M95: 0 | T95: 0
A96: 193 | M96: 0 | T96: 0
A97: 194 | M97: 0 | T97: 0
A98: 195 | M98: 0 | T98: 0
A99: 196 | M99: 0 | T99: 0
A100: 197 | M100: 0 | T100: 0
A101: 198 | M101: 0 | T101: 0
A102: 199 | M102: 0 | T102: 0
A103: 200 | M103: 0 | T103: 0
A104: 201 | M104: 0 | T104: 0
A105: 202 | M105: 0 | T105: 0
A106: 203 | M106: 0 | T106: 0
A107: 204 | M107: 0 | T107: 0
A108: 205 | M108: 0 | T108: 0
A109: 206 | M109: 0 | T109: 0
A110: 207 | M110: 0 | T110: 0
A111: 208 | M111: 0 | T111: 0
A112: 209 | M112: 0 | T112: 0
A113: 210 | M113: 0 | T113: 0
A114: 211 | M114: 0 | T114: 0
A115: 212 | M115: 0 | T115: 0
A116: 213 | M116: 0 | T116: 0
A117: 214 | M117: 0 | T117: 0
A118: 215 | M118: 0 | T118: 0
A119: 216 | M119: 0 | T119: 0
A120: 217 | M120: 0 | T120: 0
A121: 218 | M121: 0 | T121: 0
A122: 219 | M122: 0 | T122: 0
A123: 220 | M123: 0 | T123: 0
A124: 221 | M124: 0 | T124: 0
A125: 222 | M125: 0 | T125: 0
A126: 223 | M126: 0 | T126: 0
A127: 224 | M127: 0 | T127: 0
A128: 225 | M128: 0 | T128: 0
A129: 226 | M129: 0 | T129: 0
A130: 227 | M130: 0 | T130: 0
A131: 228 | M131: 0 | T131: 0
A132: 229 | M132: 0 | T132: 0
A133: 230 | M133: =(G133*$G$2 +H133*$H$2+I133*$I$2+J133*$J$2 +K133*$K$2+L133*$L$2) -> 0 | T133: =(N133*$N$2 +O133*$O$2+P133*$P$2+Q133*$Q$2 +R133*$R$2+S133*$S$2) -> 0
A134: 231 | M134: 0 | T134: 0
A135: 232 | M135: 0 | T135: 0
A136: 233 | M136: 0 | T136: 0
A137: 234 | M137: 0 | T137: 0
A138: 235 | M138: 0 | T138: 0
A139: 236 | M139: 0 | T139: 0
A140: 237 | M140: 0 | T140: 0
A141: 238 | M141: 0 | T141: 0
A142: 239 | M142: 0 | T142: 0
A143: 240 | M143: 0 | T143: 0
A144: 241 | M144: 0 | T144: 0
A145: 242 | M145: 0 | T145: 0
A146: 243 | M146: 0 | T146: 0
A147: 244 | M147: 0 | T147: 0
A148: 245 | M148: 0 | T148: 0
A149: 246 | M149: 0 | T149: 0
A150: 247 | M150: 0 | T150: 0
A151: 248 | M151: 0 | T151: 0
A152: 249 | M152: 0 | T152: 0
A153: 250 | M153: 0 | T153: 0
A154: 251 | M154: 0 | T154: 0
A155: 252 | M155: 0 | T155: 0
A156: 253 | M156: 0 | T156: 0
A157: 254 | M157: 0 | T157: 0
A158: 255 | M158: 0 | T158: 0
A159: 256 | M159: 0 | T159: 0
A160: 257 | M160: 0 | T160: 0
A161: 258 | M161: 0 | T161: 0
A162: 259 | M162: 0 | T162: 0
A163: 260 | M163: 0 | T163: 0
A164: 261 | M164: 0 | T164: 0
A165: 262 | M165: 0 | T165: 0
A166: 263 | M166: 0 | T166: 0
A167: 264 | M167: 0 | T167: 0
A168: 265 | M168: 0 | T168: 0
A169: 266 | M169: 0 | T169: 0
A170: 267 | M170: 0 | T170: 0
A171: 268 | M171: 0 | T171: 0
A172: 269 | M172: 0 | T172: 0
A173: 270 | M173: 0 | T173: 0
A174: 271 | M174: 0 | T174: 0
A175: 272 | M175: 0 | T175: 0
A176: 273 | M176: 0 | T176: 0
A177: 274 | M177: 0 | T177: 0
A178: 275 | M178: 0 | T178: 0
A179: 276 | M179: 0 | T179: 0
A180: 277 | M180: 0 | T180: 0
A181: 278 | M181: 0 | T181: 0
A182: 279 | M182: 0 | T182: 0
A183: 280 | M183: 0 | T183: 0
A184: 281 | M184: 0 | T184: 0
A185: 282 | M185: 0 | T185: 0
A186: 283 | M186: 0 | T186: 0
A187: 284 | M187: 0 | T187: 0
A188: 285 | M188: 0 | T188: 0
A189: 286 | M189: 0 | T189: 0
A190: 287 | M190: 0 | T190: 0
A191: 288 | M191: 0 | T191: 0
A192: 289 | M192: 0 | T192: 0
A193: 290 | M193: 0 | T193: 0
A194: 291 | M194: 0 | T194: 0
A195: 292 | M195: 0 | T195: 0
A196: 293 | M196: 0 | T196: 0
A197: 294 | M197: =(G197*$G$2 +H197*$H$2+I197*$I$2+J197*$J$2 +K197*$K$2+L197*$L$2) -> 0 | T197: =(N197*$N$2 +O197*$O$2+P197*$P$2+Q197*$Q$2 +R197*$R$2+S197*$S$2) -> 0
A198: 295 | M198: 0 | T198: 0
A199: 296 | M199: 0 | T199: 0
A200: 297 | M200: 0 | T200: 0
... 653 more rows

Sheet NRW-Junior
A1: =Gesamt!A1 -> 10.06.2018 DSKD Derby Mettingen
A2: NRW-Qualifikation JUNIOR - Klasse
A4: Wird der Lauf gewertet? dann 0 oder 1 eintragen | G4: 1 | H4: 1 | I4: 1 | J4: 1 | K4: 1 | L4: 1
A5: Bestzeit je Lauf | G5: =MIN(G9:G203) -> 38.77 | H5: 38.81 | I5: 38.69 | J5: 38.74 | K5: 100 | L5: 0
A7: Start Nummer | B7: Gruppe | C7: startet | D7: Name | E7: Vorname | F7: Verein | G7: Lauf 1 | H7: Lauf 2 | I7: Lauf 3 | J7: Lauf 4 | K7: Lauf 5 | L7: Lauf 6 | M7: Summe der gewerteten Läufe | O7: Platz | P7: Urkunde
A9: 102 | B9: JUN | D9: Paschedag | E9: Mia | F9: Stromberg | G9: 38.77 | H9: 38.85 | I9: 38.69 | J9: 38.96 | M9: =(G9*$G$4+H9*$H$4+I9*$I$4+J9*$J$4+K9*$K$4+L9*$L$4) -> 155.27 | N9: =IF(M9>0,M9*-1,-1000) -> -155.27 | O9: =IF(M9>0,RANK(N9,N:N),0) -> 1
A10: 101 | B10: JUN | D10: Lampe | E10: Ida | F10: Mettingen | G10: 38.91 | H10: 38.81 | I10: 38.74 | J10: 39.05 | M10: 155.51 | N10: -155.51 | O10: 2
A11: 103 | B11: JUN | D11: Freudenstein | E11: Romy | F11: Mettingen | G11: 38.92 | H11: 38.96 | I11: 38.73 | J11: 38.94 | M11: 155.55 | N11: -155.55 | O11: 3
A12: 111 | B12: JUN | D12: Meyhoff | E12: Moritz | F12: Mettingen | G12: 38.97 | H12: 38.87 | I12: 38.99 | J12: 38.85 | M12: 155.68 | N12: -155.68 | O12: 4
A13: 105 | B13: JUN | D13: Bednarski | E13: Max | F13: Mettingen | M13: 0 | N13: -1000 | O13: 0
A14: 125 | B14: JUN | D14: Meyhoff | E14: Finn | F14: Mettingen | G14: 38.83 | H14: 38.88 | I14: 38.99 | J14: 39.05 | M14: 155.75 | N14: -155.75 | O14: 5
A15: 107 | B15: JUN | D15: Plath | E15: Johanna | F15: Mettingen | M15: 0 | N15: -1000 | O15: 0
A16: 124 | B16: JUN | D16: Crook | E16: Florian | F16: Mettingen | G16: 38.96 | H16: 38.89 | I16: 38.94 | J16: 39.11 | M16: 155.9 | N16: -155.9 | O16: 6
A17: 106 | B17: JUN | D17: Plath | E17: Marvin | F17: Mettingen | G17: 39.04 | H17: 39.01 | I17: 38.95 | J17: 39.32 | M17: 156.32 | N17: -156.32 | O17: 7
A18: 108 | B18: JUN | D18: Pufahl | E18: Maximilian | F18: Mettingen | G18: 39.17 | H18: 39.07 | I18: 38.99 | J18: 39.26 | M18: 156.49 | N18: -156.49 | O18: 8
A19: 110 | B19: JUN | D19: Claus | E19: Florentina | F19: Bergkamen | G19: 39.2 | H19: 39.26 | I19: 39.45 | J19: 39.31 | M19: 157.22 | N19: -157.22 | O19: 9
A20: 112 | B20: JUN | D20: Gahler | E20: Hendrik | F20: Mettingen | M20: 0 | N20: -1000 | O20: 0
A21: 113 | B21: JUN | D21: Bednarski | E21: Jonathan | F21: Mettingen | M21: 0 | N21: -1000 | O21: 0
A22: 114 | B22: JUN | D22: Reutter | E22: Elisabeth | F22: Stromberg | M22: 0 | N22: -1000 | O22: 0
A23: 115 | B23: JUN | D23: Stoffers | E23: Martha | F23: Stromberg | M23: 0 | N23: -1000 | O23: 0
A24: 116 | B24: JUN | D24: Hiegemann | E24: Mathilda | F24: Stromberg | M24: 0 | N24: -1000 | O24: 0
A25: 109 | B25: JUN | D25: Demleitner | E25: Angelike | F25: Bergkamen | G25: 39.29 | H25: 39.28 | I25: 39.28 | J25: 39.49 | M25: 157.34 | N25: -157.34 | O25: 10
A26: 118 | B26: JUN | D26: Pflug | E26: Fabian | F26: Stromberg | M26: 0 | N26: -1000 | O26: 0
A27: 119 | B27: JUN | D27: Krüger | E27: Michelle | F27: Billerbeck | M27: 0 | N27: -1000 | O27: 0
A28: 120 | B28: JUN | D28: Enders | E28: Julius | F28: Billerbeck | M28: 0 | N28: -1000 | O28: 0
A29: 121 | B29: JUN | D29: Stoffers | E29: Christina | F29: Stromberg | M29: 0 | N29: -1000 | O29: 0
A30: 122 | B30: JUN | D30: Grützner | E30: Lennox | F30: Billerbeck | M30: 0 | N30: -1000 | O30: 0
A31: 123 | B31: JUN | D31: Paschedag | E31: Lena | F31: Stromberg | M31: 0 | N31: -1000 | O31: 0
A32: 117 | B32: JUN | D32: Ording | E32: Louisa | F32: Stromberg | G32: 39.47 | H32: 39.44 | I32: 39.64 | J32: 39.48 | M32: 158.03 | N32: -158.03 | O32: 11
A33: 127 | B33: JUN | D33: Meister | E33: Till | F33: Mettingen | G33: 39.6 | H33: 39.27 | I33: 39.79 | J33: 39.59 | M33: 158.25 | N33: -158.25 | O33: 12
A34: 126 | B34: JUN | M34: 0 | N34: -1000 | O34: 0
A35: 104 | B35: JUN | D35: Schier | E35: Finn | F35: Stromberg | G35: 39.42 | H35: 39.44 | I35: 39.69 | J35: 39.74 | M35: 158.29 | N35: -158.29 | O35: 13
A36: 128 | B36: JUN | M36: 0 | N36: -1000 | O36: 0
A37: 129 | B37: JUN | M37: 0 | N37: -1000 | O37: 0
A38: 130 | B38: JUN | D38: Kleinsorge | E38: Henri | F38: Mettingen | G38: 44.04 | H38: 41.76 | I38: 41.17 | J38: 40.79 | M38: 167.76 | N38: -167.76 | O38: 14
A39: 131 | B39: JUN | M39: 0 | N39: -1000 | O39: 0
A40: 132 | B40: JUN | M40: 0 | N40: -1000 | O40: 0
A41: 133 | B41: JUN | M41: =(G41*$G$4+H41*$H$4+I41*$I$4+J41*$J$4+K41*$K$4+L41*$L$4) -> 0 | N41: =IF(M41>0,M41*-1,-1000) -> -1000 | O41: =IF(M41>0,RANK(N41,N:N),0) -> 0
A42: 134 | B42: JUN | M42: 0 | N42: -1000 | O42: 0
A43: 135 | B43: JUN | M43: 0 | N43: -1000 | O43: 0
A44: 136 | B44: JUN | M44: 0 | N44: -1000 | O44: 0
A45: 137 | B45: JUN | M45: 0 | N45: -1000 | O45: 0
A46: 138 | B46: JUN | M46: 0 | N46: -1000 | O46: 0
A47: 139 | B47: JUN | M47: 0 | N47: -1000 | O47: 0
A48: 140 | B48: JUN | M48: 0 | N48: -1000 | O48: 0
A49: 141 | B49: JUN | M49: 0 | N49: -1000 | O49: 0
A50: 142 | B50: JUN | M50: 0 | N50: -1000 | O50: 0
A51: 143 | B51: JUN | M51: 0 | N51: -1000 | O51: 0
A52: 144 | B52: JUN | M52: 0 | N52: -1000 | O52: 0
A53: 145 | B53: JUN | M53: 0 | N53: -1000 | O53: 0
A54: 146 | B54: JUN | M54: 0 | N54: -1000 | O54: 0
A55: 147 | B55: JUN | M55: 0 | N55: -1000 | O55: 0
A56: 148 | B56: JUN | M56: 0 | N56: -1000 | O56: 0
A57: 149 | B57: JUN | M57: 0 | N57: -1000 | O57: 0
M58: 0 | N58: -1000 | O58: 0
A59: 402 | B59: Jun | C59: Berlin | D59: Milbach | E59: Leif | F59: Joker Team | G59: 38.97 | H59: 38.97 | I59: 41.1 | J59: 38.74 | K59: 100 | M59: 257.78 | N59: -257.78 | O59: 15
A60: 401 | B60: Jun | C60: Berlin | D60: Milbach | E60: Loreley | F60: Joker Team | G60: 41.21 | H60: 40.92 | I60: 38.96 | J60: 40.39 | K60: 100 | M60: 261.48 | N60: -261.48 | O60: 16
M61: =(G61*$G$4+H61*$H$4+I61*$I$4+J61*$J$4+K61*$K$4+L61*$L$4) -> 0 | N61: =IF(M61>0,M61*-1,-1000) -> -1000 | O61: =IF(M61>0,RANK(N61,N:N),0) -> 0
M62: 0 | N62: -1000 | O62: 0
M63: 0 | N63: -1000 | O63: 0
M64: 0 | N64: -1000 | O64: 0
M65: 0 | N65: -1000 | O65: 0
M66: 0 | N66: -1000 | O66: 0
M67: 0 | N67: -1000 | O67: 0
M68: 0 | N68: -1000 | O68: 0
M69: 0 | N69: -1000 | O69: 0
M70: 0 | N70: -1000 | O70: 0
M71: 0 | N71: -1000 | O71: 0
M72: 0 | N72: -1000 | O72: 0
M73: =(G73*$G$4+H73*$H$4+I73*$I$4+J73*$J$4+K73*$K$4+L73*$L$4) -> 0 | N73: =IF(M73>0,M73*-1,-1000) -> -1000 | O73: =IF(M73>0,RANK(N73,N:N),0) -> 0
M74: 0 | N74: -1000 | O74: 0
M75: 0 | N75: -1000 | O75: 0
M76: 0 | N76: -1000 | O76: 0
M77: 0 | N77: -1000 | O77: 0
M78: 0 | N78: -1000 | O78: 0
M79: 0 | N79: -1000 | O79: 0
M80: 0 | N80: -1000 | O80: 0
M81: 0 | N81: -1000 | O81: 0
M82: 0 | N82: -1000 | O82: 0
M83: 0 | N83: -1000 | O83: 0
M84: 0 | N84: -1000 | O84: 0
M85: 0 | N85: -1000 | O85: 0
M86: 0 | N86: -1000 | O86: 0
M87: 0 | N87: -1000 | O87: 0
M88: 0 | N88: -1000 | O88: 0
M89: 0 | N89: -1000 | O89: 0
M90: 0 | N90: -1000 | O90: 0
M91: 0 | N91: -1000 | O91: 0
M92: 0 | N92: -1000 | O92: 0
M93: 0 | N93: -1000 | O93: 0
M94: 0 | N94: -1000 | O94: 0
M95: 0 | N95: -1000 | O95: 0
M96: 0 | N96: -1000 | O96: 0
M97: 0 | N97: -1000 | O97: 0
M98: 0 | N98: -1000 | O98: 0
M99: 0 | N99: -1000 | O99: 0
M100: 0 | N100: -1000 | O100: 0
M101: 0 | N101: -1000 | O101: 0
M102: 0 | N102: -1000 | O102: 0
M103: 0 | N103: -1000 | O103: 0
M104: 0 | N104: -1000 | O104: 0
M105: =(G105*$G$4+H105*$H$4+I105*$I$4+J105*$J$4+K105*$K$4+L105*$L$4) -> 0 | N105: =IF(M105>0,M105*-1,-1000) -> -1000 | O105: =IF(M105>0,RANK(N105,N:N),0) -> 0
M106: 0 | N106: -1000 | O106: 0
M107: 0 | N107: -1000 | O107: 0
M108: 0 | N108: -1000 | O108: 0
M109: 0 | N109: -1000 | O109: 0
M110: 0 | N110: -1000 | O110: 0
M111: 0 | N111: -1000 | O111: 0
M112: 0 | N112: -1000 | O112: 0
M113: 0 | N113: -1000 | O113: 0
M114: 0 | N114: -1000 | O114: 0
M115: 0 | N115: -1000 | O115: 0
M116: 0 | N116: -1000 | O116: 0
M117: 0 | N117: -1000 | O117: 0
M118: 0 | N118: -1000 | O118: 0
M119: 0 | N119: -1000 | O119: 0
M120: 0 | N120: -1000 | O120: 0
M121: 0 | N121: -1000 | O121: 0
M122: 0 | N122: -1000 | O122: 0
M123: 0 | N123: -1000 | O123: 0
M124: 0 | N124: -1000 | O124: 0
M125: 0 | N125: -1000 | O125: 0
M126: 0 | N126: -1000 | O126: 0
M127: 0 | N127: -1000 | O127: 0
M128: 0 | N128: -1000 | O128: 0
M129: 0 | N129: -1000 | O129: 0
M130: 0 | N130: -1000 | O130: 0
M131: 0 | N131: -1000 | O131: 0
M132: 0 | N132: -1000 | O132: 0
M133: 0 | N133: -1000 | O133: 0
M134: 0 | N134: -1000 | O134: 0
M135: 0 | N135: -1000 | O135: 0
M136: 0 | N136: -1000 | O136: 0
M137: =(G137*$G$4+H137*$H$4+I137*$I$4+J137*$J$4+K137*$K$4+L137*$L$4) -> 0 | N137: =IF(M137>0,M137*-1,-1000) -> -1000 | O137: =IF(M137>0,RANK(N137,N:N),0) -> 0
M138: 0 | N138: -1000 | O138: 0
M139: 0 | N139: -1000 | O139: 0
M140: 0 | N140: -1000 | O140: 0
M141: 0 | N141: -1000 | O141: 0
M142: 0 | N142: -1000 | O142: 0
M143: 0 | N143: -1000 | O143: 0
M144: 0 | N144: -1000 | O144: 0
M145: 0 | N145: -1000 | O145: 0
M146: 0 | N146: -1000 | O146: 0
M147: 0 | N147: -1000 | O147: 0
M148: 0 | N148: -1000 | O148: 0
M149: 0 | N149: -1000 | O149: 0
M150: 0 | N150: -1000 | O150: 0
M151: 0 | N151: -1000 | O151: 0
M152: 0 | N152: -1000 | O152: 0
M153: 0 | N153: -1000 | O153: 0
M154: 0 | N154: -1000 | O154: 0
M155: 0 | N155: -1000 | O155: 0
M156: 0 | N156: -1000 | O156: 0
M157: 0 | N157: -1000 | O157: 0
M158: 0 | N158: -1000 | O158: 0
M159: 0 | N159: -1000 | O159: 0
M160: 0 | N160: -1000 | O160: 0
M161: 0 | N161: -1000 | O161: 0
M162: 0 | N162: -1000 | O162: 0
M163: 0 | N163: -1000 | O163: 0
M164: 0 | N164: -1000 | O164: 0
M165: 0 | N165: -1000 | O165: 0
M166: 0 | N166: -1000 | O166: 0
M167: 0 | N167: -1000 | O167: 0
M168: 0 | N168: -1000 | O168: 0
M169: =(G169*$G$4+H169*$H$4+I169*$I$4+J169*$J$4+K169*$K$4+L169*$L$4) -> 0 | N169: =IF(M169>0,M169*-1,-1000) -> -1000 | O169: =IF(M169>0,RANK(N169,N:N),0) -> 0
M170: 0 | N170: -1000 | O170: 0
M171: 0 | N171: -1000 | O171: 0
M172: 0 | N172: -1000 | O172: 0
M173: 0 | N173: -1000 | O173: 0
M174: 0 | N174: -1000 | O174: 0
M175: 0 | N175: -1000 | O175: 0
M176: 0 | N176: -1000 | O176: 0
M177: 0 | N177: -1000 | O177: 0
M178: 0 | N178: -1000 | O178: 0
M179: 0 | N179: -1000 | O179: 0
M180: 0 | N180: -1000 | O180: 0
M181: 0 | N181: -1000 | O181: 0
M182: 0 | N182: -1000 | O182: 0
M183: 0 | N183: -1000 | O183: 0
M184: 0 | N184: -1000 | O184: 0
M185: 0 | N185: -1000 | O185: 0
M186: 0 | N186: -1000 | O186: 0
M187: 0 | N187: -1000 | O187: 0
M188: 0 | N188: -1000 | O188: 0
M189: 0 | N189: -1000 | O189: 0
M190: 0 | N190: -1000 | O190: 0
M191: 0 | N191: -1000 | O191: 0
M192: 0 | N192: -1000 | O192: 0
M193: 0 | N193: -1000 | O193: 0
M194: 0 | N194: -1000 | O194: 0
M195: 0 | N195: -1000 | O195: 0
M196: 0 | N196: -1000 | O196: 0
M197: 0 | N197: -1000 | O197: 0
M198: 0 | N198: -1000 | O198: 0
M199: 0 | N199: -1000 | O199: 0
M200: 0 | N200: -1000 | O200: 0
M201: =(G201*$G$4+H201*$H$4+I201*$I$4+J201*$J$4+K201*$K$4+L201*$L$4) -> 0 | N201: =IF(M201>0,M201*-1,-1000) -> -1000 | O201: =IF(M201>0,RANK(N201,N:N),0) -> 0
M202: 0 | N202: -1000 | O202: 0
M203: 0 | N203: -1000 | O203: 0

Sheet NRW-Senior
A1: =Gesamt!A1 -> 10.06.2018 DSKD Derby Mettingen
A2: NRW-Qualifikation SENIOR - Klasse
A4: Wird der Lauf gewertet? dann 0 oder 1 eintragen | G4: 1 | H4: 1 | I4: 1 | J4: 1 | K4: 1 | L4: 1
A5: Bestzeit je Lauf | G5: =MIN(G9:G203) -> 37.56 | H5: 37.58 | I5: 37.57 | J5: 37.49 | K5: 100 | L5: 0
A7: Start Nummer | B7: Gruppe | C7: startet | D7: Name | E7: Vorname | F7: Verein | G7: Lauf 1 | H7: Lauf 2 | I7: Lauf 3 | J7: Lauf 4 | K7: Lauf 5 | L7: Lauf 6 | M7: Summe der gewerteten Läufe | O7: Platz | P7: Urkunde
A9: 319 | B9: SEN | D9: Sonneborn | E9: Ina | F9: Stromberg | G9: 37.58 | H9: 37.58 | I9: 37.57 | J9: 37.49 | M9: =(G9*$G$4+H9*$H$4+I9*$I$4+J9*$J$4+K9*$K$4+L9*$L$4) -> 150.22 | N9: =IF(M9>0,M9*-1,-1000) -> -150.22 | O9: =IF(M9>0,RANK(N9,N:N),0) -> 1
A10: 302 | B10: SEN | D10: Gößling | E10: Jule | F10: Mettingen | M10: 0 | N10: -1000 | O10: 0
A11: 312 | B11: SEN | D11: Neuhaus | E11: Robin | F11: Mettingen | G11: 37.56 | H11: 37.7 | I11: 37.67 | J11: 37.5 | M11: 150.43 | N11: -150.43 | O11: 2
A12: 304 | B12: SEN | D12: Kessling | E12: Sophie | F12: Mettingen | M12: 0 | N12: -1000 | O12: 0
A13: 305 | B13: SEN | D13: Zaruba | E13: Max | F13: Mettingen | G13: 37.67 | H13: 37.67 | I13: 37.69 | J13: 37.64 | M13: 150.67 | N13: -150.67 | O13: 3
A14: 306 | B14: SEN | D14: Lutterbach | E14: Roman | F14: Simmerath | M14: 0 | N14: -1000 | O14: 0
A15: 307 | B15: SEN | D15: Meyer | E15: Henry | F15: Mettingen | M15: 0 | N15: -1000 | O15: 0
A16: 308 | B16: SEN | D16: Becker | E16: Robin | F16: Bergkamen | M16: 0 | N16: -1000 | O16: 0
A17: 309 | B17: SEN | D17: Lutterbach | E17: Eric | F17: Simmerath | M17: 0 | N17: -1000 | O17: 0
A18: 310 | B18: SEN | D18: Ricker | E18: Sarah | F18: Billerbeck | M18: 0 | N18: -1000 | O18: 0
A19: 311 | B19: SEN | D19: Lammers | E19: Laura | F19: ConAction | M19: 0 | N19: -1000 | O19: 0
A20: 313 | B20: SEN | D20: Meyer | E20: Johann | F20: Mettingen | G20: 37.71 | H20: 37.73 | I20: 37.67 | J20: 37.61 | M20: 150.72 | N20: -150.72 | O20: 4
A21: 301 | B21: SEN | D21: Lampe | E21: Pia | F21: Mettingen | G21: 37.74 | H21: 37.78 | I21: 37.66 | J21: 37.69 | M21: 150.87 | N21: -150.87 | O21: 5
A22: 314 | B22: SEN | D22: Wetter | E22: Stefanie | F22: Billerbeck | M22: 0 | N22: -1000 | O22: 0
A23: 315 | B23: SEN | D23: Steinberg | E23: Kimberly | F23: Billerbeck | M23: 0 | N23: -1000 | O23: 0
A24: 316 | B24: SEN | D24: Wratny | E24: Nikolai | F24: Bergkamen | M24: 0 | N24: -1000 | O24: 0
A25: 317 | B25: SEN | D25: Sternberg | E25: Luise | F25: Billerbeck | M25: 0 | N25: -1000 | O25: 0
A26: 318 | B26: SEN | D26: Szabowski | E26: Mara | F26: Billerbeck | M26: 0 | N26: -1000 | O26: 0
A27: 303 | B27: SEN | D27: Freudenstein | E27: Rieke | F27: Mettingen | G27: 37.73 | H27: 37.77 | I27: 37.78 | J27: 37.68 | M27: 150.96 | N27: -150.96 | O27: 6
A28: 320 | B28: SEN | D28: Stoffers | E28: Lisa | F28: Stromberg | M28: 0 | N28: -1000 | O28: 0
A29: 321 | B29: SEN | M29: 0 | N29: -1000 | O29: 0
A30: 322 | B30: SEN | D30: Grützner | E30: Lennox | F30: Billerbeck | M30: 0 | N30: -1000 | O30: 0
A31: 323 | B31: SEN | M31: 0 | N31: -1000 | O31: 0
A32: 324 | B32: SEN | M32: 0 | N32: -1000 | O32: 0
A33: 325 | B33: SEN | M33: 0 | N33: -1000 | O33: 0
A34: 326 | B34: SEN | M34: 0 | N34: -1000 | O34: 0
A35: 327 | B35: SEN | M35: 0 | N35: -1000 | O35: 0
A36: 328 | B36: SEN | M36: 0 | N36: -1000 | O36: 0
A37: 329 | B37: SEN | M37: 0 | N37: -1000 | O37: 0
A38: 330 | B38: SEN | M38: 0 | N38: -1000 | O38: 0
A39: 331 | B39: SEN | M39: 0 | N39: -1000 | O39: 0
A40: 332 | B40: SEN | M40: 0 | N40: -1000 | O40: 0
A41: 333 | B41: SEN | M41: 0 | N41: -1000 | O41: 0
A42: 334 | B42: SEN | M42: 0 | N42: -1000 | O42: 0
A43: 335 | B43: SEN | M43: 0 | N43: -1000 | O43: 0
A44: 336 | B44: SEN | M44: 0 | N44: -1000 | O44: 0
A45: 337 | B45: SEN | M45: 0 | N45: -1000 | O45: 0
A46: 338 | B46: SEN | M46: 0 | N46: -1000 | O46: 0
A47: 339 | B47: SEN | M47: 0 | N47: -1000 | O47: 0
A48: 340 | B48: SEN | M48: 0 | N48: -1000 | O48: 0
A49: 341 | B49: SEN | M49: 0 | N49: -1000 | O49: 0
A50: 342 | B50: SEN | M50: 0 | N50: -1000 | O50: 0
A51: 403 | B51: SEN | C51: Berlin | D51: Reuscher | E51: Sanja | F51: Joker Team | G51: 37.84 | H51: 38.07 | I51: 37.88 | J51: 37.93 | K51: 100 | M51: 251.72 | N51: -251.72 | O51: 7
A52: 404 | B52: SEN | C52: Berlin | D52: Reuscher | E52: Silas | F52: Joker Team | G52: 37.91 | H52: 38.12 | I52: 38 | J52: 38.04 | K52: 100 | M52: 252.07 | N52: -252.07 | O52: 8
M53: =(G53*$G$4+H53*$H$4+I53*$I$4+J53*$J$4+K53*$K$4+L53*$L$4) -> 0 | N53: =IF(M53>0,M53*-1,-1000) -> -1000 | O53: =IF(M53>0,RANK(N53,N:N),0) -> 0
M54: 0 | N54: -1000 | O54: 0
M55: 0 | N55: -1000 | O55: 0
M56: 0 | N56: -1000 | O56: 0
M57: 0 | N57: -1000 | O57: 0
M58: 0 | N58: -1000 | O58: 0
M59: 0 | N59: -1000 | O59: 0
M60: 0 | N60: -1000 | O60: 0
M61: 0 | N61: -1000 | O61: 0
M62: 0 | N62: -1000 | O62: 0
M63: 0 | N63: -1000 | O63: 0
M64: 0 | N64: -1000 | O64: 0
M65: 0 | N65: -1000 | O65: 0
M66: 0 | N66: -1000 | O66: 0
M67: 0 | N67: -1000 | O67: 0
M68: 0 | N68: -1000 | O68: 0
M69: 0 | N69: -1000 | O69: 0
M70: 0 | N70: -1000 | O70: 0
M71: 0 | N71: -1000 | O71: 0
M72: 0 | N72: -1000 | O72: 0
M73: =(G73*$G$4+H73*$H$4+I73*$I$4+J73*$J$4+K73*$K$4+L73*$L$4) -> 0 | N73: =IF(M73>0,M73*-1,-1000) -> -1000 | O73: =IF(M73>0,RANK(N73,N:N),0) -> 0
M74: 0 | N74: -1000 | O74: 0
M75: 0 | N75: -1000 | O75: 0
M76: 0 | N76: -1000 | O76: 0
M77: 0 | N77: -1000 | O77: 0
M78: 0 | N78: -1000 | O78: 0
M79: 0 | N79: -1000 | O79: 0
M80: 0 | N80: -1000 | O80: 0
M81: 0 | N81: -1000 | O81: 0
M82: 0 | N82: -1000 | O82: 0
M83: 0 | N83: -1000 | O83: 0
M84: 0 | N84: -1000 | O84: 0
M85: 0 | N85: -1000 | O85: 0
M86: 0 | N86: -1000 | O86: 0
M87: 0 | N87: -1000 | O87: 0
M88: 0 | N88: -1000 | O88: 0
M89: 0 | N89: -1000 | O89: 0
M90: 0 | N90: -1000 | O90: 0
M91: 0 | N91: -1000 | O91: 0
M92: 0 | N92: -1000 | O92: 0
M93: 0 | N93: -1000 | O93: 0
M94: 0 | N94: -1000 | O94: 0
M95: 0 | N95: -1000 | O95: 0
M96: 0 | N96: -1000 | O96: 0
M97: 0 | N97: -1000 | O97: 0
M98: 0 | N98: -1000 | O98: 0
M99: 0 | N99: -1000 | O99: 0
M100: 0 | N100: -1000 | O100: 0
M101: 0 | N101: -1000 | O101: 0
M102: 0 | N102: -1000 | O102: 0
M103: 0 | N103: -1000 | O103: 0
M104: 0 | N104: -1000 | O104: 0
M105: =(G105*$G$4+H105*$H$4+I105*$I$4+J105*$J$4+K105*$K$4+L105*$L$4) -> 0 | N105: =IF(M105>0,M105*-1,-1000) -> -1000 | O105: =IF(M105>0,RANK(N105,N:N),0) -> 0
M106: 0 | N106: -1000 | O106: 0
M107: 0 | N107: -1000 | O107: 0
M108: 0 | N108: -1000 | O108: 0
M109: 0 | N109: -1000 | O109: 0
M110: 0 | N110: -1000 | O110: 0
M111: 0 | N111: -1000 | O111: 0
M112: 0 | N112: -1000 | O112: 0
M113: 0 | N113: -1000 | O113: 0
M114: 0 | N114: -1000 | O114: 0
M115: 0 | N115: -1000 | O115: 0
M116: 0 | N116: -1000 | O116: 0
M117: 0 | N117: -1000 | O117: 0
M118: 0 | N118: -1000 | O118: 0
M119: 0 | N119: -1000 | O119: 0
M120: 0 | N120: -1000 | O120: 0
M121: 0 | N121: -1000 | O121: 0
M122: 0 | N122: -1000 | O122: 0
M123: 0 | N123: -1000 | O123: 0
M124: 0 | N124: -1000 | O124: 0
M125: 0 | N125: -1000 | O125: 0
M126: 0 | N126: -1000 | O126: 0
M127: 0 | N127: -1000 | O127: 0
M128: 0 | N128: -1000 | O128: 0
M129: 0 | N129: -1000 | O129: 0
M130: 0 | N130: -1000 | O130: 0
M131: 0 | N131: -1000 | O131: 0
M132: 0 | N132: -1000 | O132: 0
M133: 0 | N133: -1000 | O133: 0
M134: 0 | N134: -1000 | O134: 0
M135: 0 | N135: -1000 | O135: 0
M136: 0 | N136: -1000 | O136: 0
M137: =(G137*$G$4+H137*$H$4+I137*$I$4+J137*$J$4+K137*$K$4+L137*$L$4) -> 0 | N137: =IF(M137>0,M137*-1,-1000) -> -1000 | O137: =IF(M137>0,RANK(N137,N:N),0) -> 0
M138: 0 | N138: -1000 | O138: 0
M139: 0 | N139: -1000 | O139: 0
M140: 0 | N140: -1000 | O140: 0
M141: 0 | N141: -1000 | O141: 0
M142: 0 | N142: -1000 | O142: 0
M143: 0 | N143: -1000 | O143: 0
M144: 0 | N144: -1000 | O144: 0
M145: 0 | N145: -1000 | O145: 0
M146: 0 | N146: -1000 | O146: 0
M147: 0 | N147: -1000 | O147: 0
M148: 0 | N148: -1000 | O148: 0
M149: 0 | N149: -1000 | O149: 0
M150: 0 | N150: -1000 | O150: 0
M151: 0 | N151: -1000 | O151: 0
M152: 0 | N152: -1000 | O152: 0
M153: 0 | N153: -1000 | O153: 0
M154: 0 | N154: -1000 | O154: 0
M155: 0 | N155: -1000 | O155: 0
M156: 0 | N156: -1000 | O156: 0
M157: 0 | N157: -1000 | O157: 0
M158: 0 | N158: -1000 | O158: 0
M159: 0 | N159: -1000 | O159: 0
M160: 0 | N160: -1000 | O160: 0
M161: 0 | N161: -1000 | O161: 0
M162: 0 | N162: -1000 | O162: 0
M163: 0 | N163: -1000 | O163: 0
M164: 0 | N164: -1000 | O164: 0
M165: 0 | N165: -1000 | O165: 0
M166: 0 | N166: -1000 | O166: 0
M167: 0 | N167: -1000 | O167: 0
M168: 0 | N168: -1000 | O168: 0
M169: =(G169*$G$4+H169*$H$4+I169*$I$4+J169*$J$4+K169*$K$4+L169*$L$4) -> 0 | N169: =IF(M169>0,M169*-1,-1000) -> -1000 | O169: =IF(M169>0,RANK(N169,N:N),0) -> 0
M170: 0 | N170: -1000 | O170: 0
M171: 0 | N171: -1000 | O171: 0
M172: 0 | N172: -1000 | O172: 0
M173: 0 | N173: -1000 | O173: 0
M174: 0 | N174: -1000 | O174: 0
M175: 0 | N175: -1000 | O175: 0
M176: 0 | N176: -1000 | O176: 0
M177: 0 | N177: -1000 | O177: 0
M178: 0 | N178: -1000 | O178: 0
M179: 0 | N179: -1000 | O179: 0
M180: 0 | N180: -1000 | O180: 0
M181: 0 | N181: -1000 | O181: 0
M182: 0 | N182: -1000 | O182: 0
M183: 0 | N183: -1000 | O183: 0
M184: 0 | N184: -1000 | O184: 0
M185: 0 | N185: -1000 | O185: 0
M186: 0 | N186: -1000 | O186: 0
M187: 0 | N187: -1000 | O187: 0
M188: 0 | N188: -1000 | O188: 0
M189: 0 | N189: -1000 | O189: 0
M190: 0 | N190: -1000 | O190: 0
M191: 0 | N191: -1000 | O191: 0
M192: 0 | N192: -1000 | O192: 0
M193: 0 | N193: -1000 | O193: 0
M194: 0 | N194: -1000 | O194: 0
M195: 0 | N195: -1000 | O195: 0
M196: 0 | N196: -1000 | O196: 0
M197: 0 | N197: -1000 | O197: 0
M198: 0 | N198: -1000 | O198: 0
M199: 0 | N199: -1000 | O199: 0
M200: 0 | N200: -1000 | O200: 0
M201: =(G201*$G$4+H201*$H$4+I201*$I$4+J201*$J$4+K201*$K$4+L201*$L$4) -> 0 | N201: =IF(M201>0,M201*-1,-1000) -> -1000 | O201: =IF(M201>0,RANK(N201,N:N),0) -> 0
M202: 0 | N202: -1000 | O202: 0
M203: 0 | N203: -1000 | O203: 0

Sheet NRW-Elite-XL
A1: =Gesamt!A1 -> 10.06.2018 DSKD Derby Mettingen
A2: NRW-Qualifikation Elite XL - Klasse
A4: Wird der Lauf gewertet? dann 0 oder 1 eintragen | G4: 1 | H4: 1 | I4: 1 | J4: 1 | K4: 1 | L4: 1
A5: Bestzeit je Lauf | G5: =MIN(G9:G203) -> 37.71 | H5: 37.73 | I5: 37.57 | J5: 37.73 | K5: 0 | L5: 0 | P5: Platz | Q5: Urkunde
A7: Start Nummer | B7: Gruppe | C7: startet | D7: Name | E7: Vorname | F7: Verein | G7: Lauf 1 | H7: Lauf 2 | I7: Lauf 3 | J7: Lauf 4 | K7: Lauf 5 | L7: Lauf 6 | M7: Summe der gewerteten Läufe | P7: =IF(M9>0,RANK(N9,N:N),0) -> 0
P8: =IF(M10>0,RANK(N10,N:N),0) -> 1
A9: 501 | B9: EXL | D9: Ricker | E9: Jana-Lena | F9: Billerbeck | M9: =(G9*$G$4+H9*$H$4+I9*$I$4+J9*$J$4+K9*$K$4+L9*$L$4) -> 0 | N9: =IF(M9>0,M9*-1,-1000) -> -1000 | O9: =IF(M9>0,RANK(N9,N:N),0) -> 0
A10: 508 | B10: EXL | D10: Meyer | E10: Henry | F10: Mettingen | G10: 37.71 | H10: 37.73 | I10: 37.57 | J10: 37.73 | M10: =(G10*$G$4+H10*$H$4+I10*$I$4+J10*$J$4+K10*$K$4+L10*$L$4) -> 150.74 | N10: =IF(M10>0,M10*-1,-1000) -> -150.74 | O10: =IF(M10>0,RANK(N10,N:N),0) -> 1
A11: 503 | B11: EXL | D11: Niessen | E11: Nicolas | F11: Simmerath | M11: 0 | N11: -1000 | O11: 0 | P11: =IF(M13>0,RANK(N13,N:N),0) -> 3
A12: 502 | B12: EXL | D12: Schmidt | E12: Marvin | F12: Varel | G12: 37.71 | H12: 37.84 | I12: 37.7 | J12: 37.8 | M12: 151.05 | N12: -151.05 | O12: 2
A13: 505 | B13: EXL | D13: Marx | E13: Fabian | F13: ConAction | G13: 38.14 | H13: 38.25 | I13: 38.08 | J13: 38.19 | M13: 152.66 | N13: -152.66 | O13: 3 | P13: =IF(M15>0,RANK(N15,N:N),0) -> 0
A14: 506 | B14: EXL | D14: Elges | E14: Erik | F14: Stromberg | M14: 0 | N14: -1000 | O14: 0
A15: 507 | B15: EXL | D15: Wetter | E15: Sabrina | F15: Billerbeck | M15: 0 | N15: -1000 | O15: 0
A16: 504 | B16: EXL | D16: Schlösser | E16: Timon | F16: Stromberg | G16: 38.19 | H16: 38.27 | I16: 38.17 | J16: 38.19 | M16: 152.82 | N16: -152.82 | O16: 4
A17: 509 | B17: EXL | M17: 0 | N17: -1000 | O17: 0
A18: 510 | B18: EXL | M18: 0 | N18: -1000 | O18: 0
A19: 511 | B19: EXL | M19: 0 | N19: -1000 | O19: 0
A20: 512 | B20: EXL | M20: 0 | N20: -1000 | O20: 0
A21: 513 | B21: EXL | M21: 0 | N21: -1000 | O21: 0
A22: 514 | B22: EXL | M22: 0 | N22: -1000 | O22: 0
A23: 515 | B23: EXL | M23: 0 | N23: -1000 | O23: 0
A24: 516 | B24: EXL | M24: 0 | N24: -1000 | O24: 0
A25: 517 | B25: EXL | M25: 0 | N25: -1000 | O25: 0
A26: 518 | B26: EXL | M26: 0 | N26: -1000 | O26: 0
A27: 519 | B27: EXL | M27: 0 | N27: -1000 | O27: 0
A28: 520 | B28: EXL | M28: 0 | N28: -1000 | O28: 0
A29: 521 | B29: EXL | M29: 0 | N29: -1000 | O29: 0
A30: 522 | B30: EXL | M30: 0 | N30: -1000 | O30: 0
A31: 523 | B31: EXL | M31: 0 | N31: -1000 | O31: 0
A32: 524 | B32: EXL | M32: 0 | N32: -1000 | O32: 0
A33: 525 | B33: EXL | M33: 0 | N33: -1000 | O33: 0
A34: 526 | B34: EXL | M34: 0 | N34: -1000 | O34: 0
M35: 0 | N35: -1000 | O35: 0
M36: 0 | N36: -1000 | O36: 0
M37: 0 | N37: -1000 | O37: 0
M38: 0 | N38: -1000 | O38: 0
M39: 0 | N39: -1000 | O39: 0
M40: 0 | N40: -1000 | O40: 0
M41: =(G41*$G$4+H41*$H$4+I41*$I$4+J41*$J$4+K41*$K$4+L41*$L$4) -> 0 | N41: =IF(M41>0,M41*-1,-1000) -> -1000 | O41: =IF(M41>0,RANK(N41,N:N),0) -> 0
M42: 0 | N42: -1000 | O42: 0
M43: 0 | N43: -1000 | O43: 0
M44: 0 | N44: -1000 | O44: 0
M45: 0 | N45: -1000 | O45: 0
M46: 0 | N46: -1000 | O46: 0
M47: 0 | N47: -1000 | O47: 0
M48: 0 | N48: -1000 | O48: 0
M49: 0 | N49: -1000 | O49: 0
M50: 0 | N50: -1000 | O50: 0
M51: 0 | N51: -1000 | O51: 0
M52: 0 | N52: -1000 | O52: 0
M53: 0 | N53: -1000 | O53: 0
M54: 0 | N54: -1000 | O54: 0
M55: 0 | N55: -1000 | O55: 0
M56: 0 | N56: -1000 | O56: 0
M57: 0 | N57: -1000 | O57: 0
M58: 0 | N58: -1000 | O58: 0
M59: 0 | N59: -1000 | O59: 0
M60: 0 | N60: -1000 | O60: 0
M61: 0 | N61: -1000 | O61: 0
M62: 0 | N62: -1000 | O62: 0
M63: 0 | N63: -1000 | O63: 0
M64: 0 | N64: -1000 | O64: 0
M65: 0 | N65: -1000 | O65: 0
M66: 0 | N66: -1000 | O66: 0
M67: 0 | N67: -1000 | O67: 0
M68: 0 | N68: -1000 | O68: 0
M69: 0 | N69: -1000 | O69: 0
M70: 0 | N70: -1000 | O70: 0
M71: 0 | N71: -1000 | O71: 0
M72: 0 | N72: -1000 | O72: 0
M73: =(G73*$G$4+H73*$H$4+I73*$I$4+J73*$J$4+K73*$K$4+L73*$L$4) -> 0 | N73: =IF(M73>0,M73*-1,-1000) -> -1000 | O73: =IF(M73>0,RANK(N73,N:N),0) -> 0
M74: 0 | N74: -1000 | O74: 0
M75: 0 | N75: -1000 | O75: 0
M76: 0 | N76: -1000 | O76: 0
M77: 0 | N77: -1000 | O77: 0
M78: 0 | N78: -1000 | O78: 0
M79: 0 | N79: -1000 | O79: 0
M80: 0 | N80: -1000 | O80: 0
M81: 0 | N81: -1000 | O81: 0
M82: 0 | N82: -1000 | O82: 0
M83: 0 | N83: -1000 | O83: 0
M84: 0 | N84: -1000 | O84: 0
M85: 0 | N85: -1000 | O85: 0
M86: 0 | N86: -1000 | O86: 0
M87: 0 | N87: -1000 | O87: 0
M88: 0 | N88: -1000 | O88: 0
M89: 0 | N89: -1000 | O89: 0
M90: 0 | N90: -1000 | O90: 0
M91: 0 | N91: -1000 | O91: 0
M92: 0 | N92: -1000 | O92: 0
M93: 0 | N93: -1000 | O93: 0
M94: 0 | N94: -1000 | O94: 0
M95: 0 | N95: -1000 | O95: 0
M96: 0 | N96: -1000 | O96: 0
M97: 0 | N97: -1000 | O97: 0
M98: 0 | N98: -1000 | O98: 0
M99: 0 | N99: -1000 | O99: 0
M100: 0 | N100: -1000 | O100: 0
M101: 0 | N101: -1000 | O101: 0
M102: 0 | N102: -1000 | O102: 0
M103: 0 | N103: -1000 | O103: 0
M104: 0 | N104: -1000 | O104: 0
M105: =(G105*$G$4+H105*$H$4+I105*$I$4+J105*$J$4+K105*$K$4+L105*$L$4) -> 0 | N105: =IF(M105>0,M105*-1,-1000) -> -1000 | O105: =IF(M105>0,RANK(N105,N:N),0) -> 0
M106: 0 | N106: -1000 | O106: 0
M107: 0 | N107: -1000 | O107: 0
M108: 0 | N108: -1000 | O108: 0
M109: 0 | N109: -1000 | O109: 0
M110: 0 | N110: -1000 | O110: 0
M111: 0 | N111: -1000 | O111: 0
M112: 0 | N112: -1000 | O112: 0
M113: 0 | N113: -1000 | O113: 0
M114: 0 | N114: -1000 | O114: 0
M115: 0 | N115: -1000 | O115: 0
M116: 0 | N116: -1000 | O116: 0
M117: 0 | N117: -1000 | O117: 0
M118: 0 | N118: -1000 | O118: 0
M119: 0 | N119: -1000 | O119: 0
M120: 0 | N120: -1000 | O120: 0
M121: 0 | N121: -1000 | O121: 0
M122: 0 | N122: -1000 | O122: 0
M123: 0 | N123: -1000 | O123: 0
M124: 0 | N124: -1000 | O124: 0
M125: 0 | N125: -1000 | O125: 0
M126: 0 | N126: -1000 | O126: 0
M127: 0 | N127: -1000 | O127: 0
M128: 0 | N128: -1000 | O128: 0
M129: 0 | N129: -1000 | O129: 0
M130: 0 | N130: -1000 | O130: 0
M131: 0 | N131: -1000 | O131: 0
M132: 0 | N132: -1000 | O132: 0
M133: 0 | N133: -1000 | O133: 0
M134: 0 | N134: -1000 | O134: 0
M135: 0 | N135: -1000 | O135: 0
M136: 0 | N136: -1000 | O136: 0
M137: =(G137*$G$4+H137*$H$4+I137*$I$4+J137*$J$4+K137*$K$4+L137*$L$4) -> 0 | N137: =IF(M137>0,M137*-1,-1000) -> -1000 | O137: =IF(M137>0,RANK(N137,N:N),0) -> 0
M138: 0 | N138: -1000 | O138: 0
M139: 0 | N139: -1000 | O139: 0
M140: 0 | N140: -1000 | O140: 0
M141: 0 | N141: -1000 | O141: 0
M142: 0 | N142: -1000 | O142: 0
M143: 0 | N143: -1000 | O143: 0
M144: 0 | N144: -1000 | O144: 0
M145: 0 | N145: -1000 | O145: 0
M146: 0 | N146: -1000 | O146: 0
M147: 0 | N147: -1000 | O147: 0
M148: 0 | N148: -1000 | O148: 0
M149: 0 | N149: -1000 | O149: 0
M150: 0 | N150: -1000 | O150: 0
M151: 0 | N151: -1000 | O151: 0
M152: 0 | N152: -1000 | O152: 0
M153: 0 | N153: -1000 | O153: 0
M154: 0 | N154: -1000 | O154: 0
M155: 0 | N155: -1000 | O155: 0
M156: 0 | N156: -1000 | O156: 0
M157: 0 | N157: -1000 | O157: 0
M158: 0 | N158: -1000 | O158: 0
M159: 0 | N159: -1000 | O159: 0
M160: 0 | N160: -1000 | O160: 0
M161: 0 | N161: -1000 | O161: 0
M162: 0 | N162: -1000 | O162: 0
M163: 0 | N163: -1000 | O163: 0
M164: 0 | N164: -1000 | O164: 0
M165: 0 | N165: -1000 | O165: 0
M166: 0 | N166: -1000 | O166: 0
M167: 0 | N167: -1000 | O167: 0
M168: 0 | N168: -1000 | O168: 0
M169: =(G169*$G$4+H169*$H$4+I169*$I$4+J169*$J$4+K169*$K$4+L169*$L$4) -> 0 | N169: =IF(M169>0,M169*-1,-1000) -> -1000 | O169: =IF(M169>0,RANK(N169,N:N),0) -> 0
M170: 0 | N170: -1000 | O170: 0
M171: 0 | N171: -1000 | O171: 0
M172: 0 | N172: -1000 | O172: 0
M173: 0 | N173: -1000 | O173: 0
M174: 0 | N174: -1000 | O174: 0
M175: 0 | N175: -1000 | O175: 0
M176: 0 | N176: -1000 | O176: 0
M177: 0 | N177: -1000 | O177: 0
M178: 0 | N178: -1000 | O178: 0
M179: 0 | N179: -1000 | O179: 0
M180: 0 | N180: -1000 | O180: 0
M181: 0 | N181: -1000 | O181: 0
M182: 0 | N182: -1000 | O182: 0
M183: 0 | N183: -1000 | O183: 0
M184: 0 | N184: -1000 | O184: 0
M185: 0 | N185: -1000 | O185: 0
M186: 0 | N186: -1000 | O186: 0
M187: 0 | N187: -1000 | O187: 0
M188: 0 | N188: -1000 | O188: 0
M189: 0 | N189: -1000 | O189: 0
M190: 0 | N190: -1000 | O190: 0
M191: 0 | N191: -1000 | O191: 0
M192: 0 | N192: -1000 | O192: 0
M193: 0 | N193: -1000 | O193: 0
M194: 0 | N194: -1000 | O194: 0
M195: 0 | N195: -1000 | O195: 0
M196: 0 | N196: -1000 | O196: 0
M197: 0 | N197: -1000 | O197: 0
M198: 0 | N198: -1000 | O198: 0
M199: 0 | N199: -1000 | O199: 0
M200: 0 | N200: -1000 | O200: 0
M201: =(G201*$G$4+H201*$H$4+I201*$I$4+J201*$J$4+K201*$K$4+L201*$L$4) -> 0 | N201: =IF(M201>0,M201*-1,-1000) -> -1000 | O201: =IF(M201>0,RANK(N201,N:N),0) -> 0
M202: 0 | N202: -1000 | O202: 0
... 1 more rows

Sheet NRW-Elite-XL-18
A1: =Gesamt!A1 -> 10.06.2018 DSKD Derby Mettingen
A2: NRW-Qualifikation Elite XL ü18 - Klasse
A4: Wird der Lauf gewertet? dann 0 oder 1 eintragen | G4: 1 | H4: 1 | I4: 1 | J4: 1 | K4: 1 | L4: 1
A5: Bestzeit je Lauf | G5: =MIN(G9:G203) -> 37.74 | H5: 37.76 | I5: 37.72 | J5: 37.72 | K5: 0 | L5: 0
A7: Start Nummer | B7: Gruppe | C7: startet | D7: Name | E7: Vorname | F7: Verein | G7: Lauf 1 | H7: Lauf 2 | I7: Lauf 3 | J7: Lauf 4 | K7: Lauf 5 | L7: Lauf 6 | M7: Summe der gewerteten Läufe | O7: Platz | P7: Urkunde
A9: 701 | B9: EXL18 | D9: Voß | E9: Marie-Charlotte | F9: Bergkamen | G9: 37.77 | H9: 37.8 | I9: 37.72 | J9: 37.72 | M9: =(G9*$G$4+H9*$H$4+I9*$I$4+J9*$J$4+K9*$K$4+L9*$L$4) -> 151.01 | N9: =IF(M9>0,M9*-1,-1000) -> -151.01 | O9: =IF(M9>0,RANK(N9,N:N),0) -> 1
A10: 702 | B10: EXL18 | D10: Schmidt | E10: Imke | F10: Varel | M10: 0 | N10: -1000 | O10: 0
A11: 705 | B11: EXL18 | D11: Wettendorf | E11: Kathrin | F11: Stromberg | G11: 37.74 | H11: 37.76 | I11: 37.73 | J11: 37.81 | M11: 151.04 | N11: -151.04 | O11: 2
A12: 704 | B12: EXL18 | D12: Wetter | E12: Sebastian | F12: Billerbeck | M12: 0 | N12: -1000 | O12: 0
A13: 709 | B13: EXL18 | D13: Lange | E13: Florian | F13: Mettingen | G13: 37.76 | H13: 37.99 | I13: 37.8 | J13: 37.82 | M13: 151.37 | N13: -151.37 | O13: 3
A14: 712 | B14: EXL18 | D14: Rohls | E14: Sebastian | F14: Stromberg | G14: 37.94 | H14: 37.99 | I14: 37.82 | J14: 37.98 | M14: 151.73 | N14: -151.73 | O14: 4
A15: 707 | B15: EXL18 | D15: Freudenstein | E15: Thomas | F15: Mettingen | M15: 0 | N15: -1000 | O15: 0
A16: 719 | B16: EXL18 | D16: Lammers | E16: Laura | F16: ConAction | G16: 37.94 | H16: 37.89 | I16: 38.02 | J16: 37.93 | M16: 151.78 | N16: -151.78 | O16: 5
A17: 708 | B17: EXL18 | D17: Leismann | E17: Dominik | F17: Mettingen | G17: 37.94 | H17: 37.99 | I17: 37.97 | J17: 37.95 | M17: 151.85 | N17: -151.85 | O17: 6
A18: 710 | B18: EXL18 | D18: Ricker | E18: Kristina | F18: Billerbeck | M18: 0 | N18: -1000 | O18: 0
A19: 711 | B19: EXL18 | D19: Sulitze | E19: Jessica | F19: Bergkamen | M19: 0 | N19: -1000 | O19: 0
A20: 706 | B20: EXL18 | D20: Kelch | E20: Maria | F20: Bergkamen | G20: 38.09 | H20: 38.11 | I20: 37.81 | J20: 37.97 | M20: 151.98 | N20: -151.98 | O20: 7
A21: 713 | B21: EXL18 | D21: Schröer | E21: Sabrina | F21: Mettingen | G21: 37.99 | H21: 38.12 | I21: 38.04 | J21: 38.1 | M21: 152.25 | N21: -152.25 | O21: 8
A22: 714 | B22: EXL18 | D22: Roeben | E22: Frank | F22: Simmerath | M22: 0 | N22: -1000 | O22: 0
A23: 715 | B23: EXL18 | D23: Leismann | E23: Pascal | F23: Mettingen | M23: 0 | N23: -1000 | O23: 0
A24: 716 | B24: EXL18 | D24: Hollunder | E24: Christina | F24: Billerbeck | M24: 0 | N24: -1000 | O24: 0
A25: 717 | B25: EXL18 | D25: Isaac | E25: Marvin | F25: Simmerath | M25: 0 | N25: -1000 | O25: 0
A26: 718 | B26: EXL18 | D26: Ricker | E26: Claudia | F26: Billerbeck | M26: 0 | N26: -1000 | O26: 0
A27: 703 | B27: EXL18 | D27: van Loo | E27: Julian | F27: ConAction | G27: 38.13 | H27: 38.11 | I27: 37.97 | J27: 38.1 | M27: 152.31 | N27: -152.31 | O27: 9
A28: 720 | B28: EXL18 | D28: Helms | E28: Markus | F28: Billerbeck | M28: 0 | N28: -1000 | O28: 0
A29: 721 | B29: EXL18 | M29: 0 | N29: -1000 | O29: 0
A30: 722 | B30: EXL18 | M30: 0 | N30: -1000 | O30: 0
A31: 723 | B31: EXL18 | M31: 0 | N31: -1000 | O31: 0
A32: 724 | B32: EXL18 | M32: 0 | N32: -1000 | O32: 0
A33: 725 | B33: EXL18 | M33: 0 | N33: -1000 | O33: 0
A34: 725 | B34: EXL18 | M34: 0 | N34: -1000 | O34: 0
A35: 726 | B35: EXL18 | M35: 0 | N35: -1000 | O35: 0
A36: 727 | B36: EXL18 | M36: 0 | N36: -1000 | O36: 0
A37: 728 | B37: EXL18 | M37: 0 | N37: -1000 | O37: 0
A38: 729 | B38: EXL18 | M38: 0 | N38: -1000 | O38: 0
A39: 406 | B39: EXL18 | C39: Berlin | D39: Schneider | E39: Ingo | F39: Joker Team | G39: 38.19 | H39: 38.26 | I39: 38.12 | J39: 38.26 | M39: 152.83 | N39: -152.83 | O39: 10
A40: 405 | B40: EXL18 | C40: Berlin | D40: Gutlowski | E40: Svea | F40: Joker Team | G40: 38.32 | H40: 38.47 | I40: 38.29 | J40: 38.28 | M40: 153.36 | N40: -153.36 | O40: 11
M41: =(G41*$G$4+H41*$H$4+I41*$I$4+J41*$J$4+K41*$K$4+L41*$L$4) -> 0 | N41: =IF(M41>0,M41*-1,-1000) -> -1000 | O41: =IF(M41>0,RANK(N41,N:N),0) -> 0
M42: 0 | N42: -1000 | O42: 0
M43: 0 | N43: -1000 | O43: 0
M44: 0 | N44: -1000 | O44: 0
M45: 0 | N45: -1000 | O45: 0
M46: 0 | N46: -1000 | O46: 0
M47: 0 | N47: -1000 | O47: 0
M48: 0 | N48: -1000 | O48: 0
M49: 0 | N49: -1000 | O49: 0
F50: Mettingen | M50: 0 | N50: -1000 | O50: 0
M51: 0 | N51: -1000 | O51: 0
M52: 0 | N52: -1000 | O52: 0
M53: 0 | N53: -1000 | O53: 0
M54: 0 | N54: -1000 | O54: 0
M55: 0 | N55: -1000 | O55: 0
M56: 0 | N56: -1000 | O56: 0
M57: 0 | N57: -1000 | O57: 0
M58: 0 | N58: -1000 | O58: 0
M59: 0 | N59: -1000 | O59: 0
M60: 0 | N60: -1000 | O60: 0
M61: 0 | N61: -1000 | O61: 0
M62: 0 | N62: -1000 | O62: 0
M63: 0 | N63: -1000 | O63: 0
M64: 0 | N64: -1000 | O64: 0
M65: 0 | N65: -1000 | O65: 0
M66: 0 | N66: -1000 | O66: 0
M67: 0 | N67: -1000 | O67: 0
M68: 0 | N68: -1000 | O68: 0
M69: 0 | N69: -1000 | O69: 0
M70: 0 | N70: -1000 | O70: 0
M71: 0 | N71: -1000 | O71: 0
M72: 0 | N72: -1000 | O72: 0
M73: =(G73*$G$4+H73*$H$4+I73*$I$4+J73*$J$4+K73*$K$4+L73*$L$4) -> 0 | N73: =IF(M73>0,M73*-1,-1000) -> -1000 | O73: =IF(M73>0,RANK(N73,N:N),0) -> 0
M74: 0 | N74: -1000 | O74: 0
M75: 0 | N75: -1000 | O75: 0
M76: 0 | N76: -1000 | O76: 0
M77: 0 | N77: -1000 | O77: 0
M78: 0 | N78: -1000 | O78: 0
M79: 0 | N79: -1000 | O79: 0
M80: 0 | N80: -1000 | O80: 0
M81: 0 | N81: -1000 | O81: 0
M82: 0 | N82: -1000 | O82: 0
M83: 0 | N83: -1000 | O83: 0
M84: 0 | N84: -1000 | O84: 0
M85: 0 | N85: -1000 | O85: 0
M86: 0 | N86: -1000 | O86: 0
M87: 0 | N87: -1000 | O87: 0
M88: 0 | N88: -1000 | O88: 0
M89: 0 | N89: -1000 | O89: 0
M90: 0 | N90: -1000 | O90: 0
M91: 0 | N91: -1000 | O91: 0
M92: 0 | N92: -1000 | O92: 0
M93: 0 | N93: -1000 | O93: 0
M94: 0 | N94: -1000 | O94: 0
M95: 0 | N95: -1000 | O95: 0
M96: 0 | N96: -1000 | O96: 0
M97: 0 | N97: -1000 | O97: 0
M98: 0 | N98: -1000 | O98: 0
M99: 0 | N99: -1000 | O99: 0
M100: 0 | N100: -1000 | O100: 0
M101: 0 | N101: -1000 | O101: 0
M102: 0 | N102: -1000 | O102: 0
M103: 0 | N103: -1000 | O103: 0
M104: 0 | N104: -1000 | O104: 0
M105: =(G105*$G$4+H105*$H$4+I105*$I$4+J105*$J$4+K105*$K$4+L105*$L$4) -> 0 | N105: =IF(M105>0,M105*-1,-1000) -> -1000 | O105: =IF(M105>0,RANK(N105,N:N),0) -> 0
M106: 0 | N106: -1000 | O106: 0
M107: 0 | N107: -1000 | O107: 0
M108: 0 | N108: -1000 | O108: 0
M109: 0 | N109: -1000 | O109: 0
M110: 0 | N110: -1000 | O110: 0
M111: 0 | N111: -1000 | O111: 0
M112: 0 | N112: -1000 | O112: 0
M113: 0 | N113: -1000 | O113: 0
M114: 0 | N114: -1000 | O114: 0
M115: 0 | N115: -1000 | O115: 0
M116: 0 | N116: -1000 | O116: 0
M117: 0 | N117: -1000 | O117: 0
M118: 0 | N118: -1000 | O118: 0
M119: 0 | N119: -1000 | O119: 0
M120: 0 | N120: -1000 | O120: 0
M121: 0 | N121: -1000 | O121: 0
M122: 0 | N122: -1000 | O122: 0
M123: 0 | N123: -1000 | O123: 0
M124: 0 | N124: -1000 | O124: 0
M125: 0 | N125: -1000 | O125: 0
M126: 0 | N126: -1000 | O126: 0
M127: 0 | N127: -1000 | O127: 0
M128: 0 | N128: -1000 | O128: 0
M129: 0 | N129: -1000 | O129: 0
M130: 0 | N130: -1000 | O130: 0
M131: 0 | N131: -1000 | O131: 0
M132: 0 | N132: -1000 | O132: 0
M133: 0 | N133: -1000 | O133: 0
M134: 0 | N134: -1000 | O134: 0
M135: 0 | N135: -1000 | O135: 0
M136: 0 | N136: -1000 | O136: 0
M137: =(G137*$G$4+H137*$H$4+I137*$I$4+J137*$J$4+K137*$K$4+L137*$L$4) -> 0 | N137: =IF(M137>0,M137*-1,-1000) -> -1000 | O137: =IF(M137>0,RANK(N137,N:N),0) -> 0
M138: 0 | N138: -1000 | O138: 0
M139: 0 | N139: -1000 | O139: 0
M140: 0 | N140: -1000 | O140: 0
M141: 0 | N141: -1000 | O141: 0
M142: 0 | N142: -1000 | O142: 0
M143: 0 | N143: -1000 | O143: 0
M144: 0 | N144: -1000 | O144: 0
M145: 0 | N145: -1000 | O145: 0
M146: 0 | N146: -1000 | O146: 0
M147: 0 | N147: -1000 | O147: 0
M148: 0 | N148: -1000 | O148: 0
M149: 0 | N149: -1000 | O149: 0
M150: 0 | N150: -1000 | O150: 0
M151: 0 | N151: -1000 | O151: 0
M152: 0 | N152: -1000 | O152: 0
M153: 0 | N153: -1000 | O153: 0
M154: 0 | N154: -1000 | O154: 0
M155: 0 | N155: -1000 | O155: 0
M156: 0 | N156: -1000 | O156: 0
M157: 0 | N157: -1000 | O157: 0
M158: 0 | N158: -1000 | O158: 0
M159: 0 | N159: -1000 | O159: 0
M160: 0 | N160: -1000 | O160: 0
M161: 0 | N161: -1000 | O161: 0
M162: 0 | N162: -1000 | O162: 0
M163: 0 | N163: -1000 | O163: 0
M164: 0 | N164: -1000 | O164: 0
M165: 0 | N165: -1000 | O165: 0
M166: 0 | N166: -1000 | O166: 0
M167: 0 | N167: -1000 | O167: 0
M168: 0 | N168: -1000 | O168: 0
M169: =(G169*$G$4+H169*$H$4+I169*$I$4+J169*$J$4+K169*$K$4+L169*$L$4) -> 0 | N169: =IF(M169>0,M169*-1,-1000) -> -1000 | O169: =IF(M169>0,RANK(N169,N:N),0) -> 0
M170: 0 | N170: -1000 | O170: 0
M171: 0 | N171: -1000 | O171: 0
M172: 0 | N172: -1000 | O172: 0
M173: 0 | N173: -1000 | O173: 0
M174: 0 | N174: -1000 | O174: 0
M175: 0 | N175: -1000 | O175: 0
M176: 0 | N176: -1000 | O176: 0
M177: 0 | N177: -1000 | O177: 0
M178: 0 | N178: -1000 | O178: 0
M179: 0 | N179: -1000 | O179: 0
M180: 0 | N180: -1000 | O180: 0
M181: 0 | N181: -1000 | O181: 0
M182: 0 | N182: -1000 | O182: 0
M183: 0 | N183: -1000 | O183: 0
M184: 0 | N184: -1000 | O184: 0
M185: 0 | N185: -1000 | O185: 0
M186: 0 | N186: -1000 | O186: 0
M187: 0 | N187: -1000 | O187: 0
M188: 0 | N188: -1000 | O188: 0
M189: 0 | N189: -1000 | O189: 0
M190: 0 | N190: -1000 | O190: 0
M191: 0 | N191: -1000 | O191: 0
M192: 0 | N192: -1000 | O192: 0
M193: 0 | N193: -1000 | O193: 0
M194: 0 | N194: -1000 | O194: 0
M195: 0 | N195: -1000 | O195: 0
M196: 0 | N196: -1000 | O196: 0
M197: 0 | N197: -1000 | O197: 0
M198: 0 | N198: -1000 | O198: 0
M199: 0 | N199: -1000 | O199: 0
M200: 0 | N200: -1000 | O200: 0
M201: =(G201*$G$4+H201*$H$4+I201*$I$4+J201*$J$4+K201*$K$4+L201*$L$4) -> 0 | N201: =IF(M201>0,M201*-1,-1000) -> -1000 | O201: =IF(M201>0,RANK(N201,N:N),0) -> 0
M202: 0 | N202: -1000 | O202: 0
M203: 0 | N203: -1000 | O203: 0

Sheet NRW-Open
A1: =Gesamt!A1 -> 10.06.2018 DSKD Derby Mettingen
A2: NRW-Qualifikation Open - Klasse
A4: Wird der Lauf gewertet? dann 0 oder 1 eintragen | G4: 1 | H4: 1 | I4: 1 | J4: 1 | K4: 1 | L4: 1 | M4: 1
A5: Bestzeit je Lauf | G5: =MIN(G9:G202) -> 37.58 | H5: 37.63 | I5: 37.68 | J5: 37.46 | K5: 0 | L5: 0 | M5: 0
A7: Start Nummer | B7: Gruppe | C7: startet | D7: Name | E7: Vorname | F7: Verein | G7: Lauf 1 | H7: Lauf 2 | I7: Lauf 3 | J7: Lauf 4 | K7: Lauf 5 | L7: Lauf 6 | M7: Summe | O7: Platz
A9: 901 | B9: Open | D9: Schmidt | E9: Michael | F9: Varel | G9: 37.58 | H9: 37.63 | I9: 37.68 | J9: 37.46 | M9: =IF($G$4=1, IF(H9>1,(ABS(G9-H9)),0)+ IF(I9>1,(ABS(G9-I9)),0)+ IF(J9>1,(ABS(G9-J9)),0)+ IF(K9>1,(ABS(G9-K9)),0)+ IF(L9>1,(ABS(G9-L9)),0), IF(I9>1,(ABS(H9-I9)),0)+ IF(J9>1,(ABS(H9-J9)),0)+ IF(K9>1,(ABS(H9-K9)),0) ) -> 0.27 | N9: =IF(M9>0,M9*-1,-1000) -> -0.27 | O9: =IF(M9>0,RANK(N9,N:N),0) -> 1
A10: 903 | B10: Open | D10: Gerigk-Lorenz | E10: Frank | F10: Overath | G10: 38.97 | H10: 38.89 | I10: 38.76 | J10: 38.71 | M10: 0.55 | N10: -0.55 | O10: 2
A11: 902 | B11: Open | D11: Crook | E11: Florian | F11: Mettingen | M11: 0 | N11: -1000 | O11: 0
A12: 904 | B12: Open | D12: Gaidosch | E12: Udo | F12: Overath | G12: 40.09 | H12: 40 | I12: 39.82 | J12: 39.81 | M12: 0.64 | N12: -0.64 | O12: 3
A13: 919 | B13: Open | D13: Schlösser | E13: Jürgen | F13: Stromberg | G13: 43.64 | H13: 43.99 | I13: 44.1 | J13: 43.72 | M13: 0.89 | N13: -0.89 | O13: 4
A14: 905 | B14: Open | D14: Ricker | E14: Andreas | F14: Billerbeck | M14: 0 | N14: -1000 | O14: 0
A15: 906 | B15: Open | D15: Szabowski | E15: Marco | F15: Billerbeck | M15: 0 | N15: -1000 | O15: 0
A16: 907 | B16: Open | D16: Szabowski | E16: Peter | F16: Billerbeck | M16: 0 | N16: -1000 | O16: 0
A17: 908 | B17: Open | D17: Pahlings | E17: Anna | F17: ConAction | M17: 0 | N17: -1000 | O17: 0
A18: 909 | B18: Open | D18: Pahlings | E18: Kai | F18: ConAction | M18: 0 | N18: -1000 | O18: 0
A19: 910 | B19: Open | D19: Drücker | E19: Gavin | F19: Stromberg | M19: 0 | N19: -1000 | O19: 0
A20: 911 | B20: Open | D20: Drücker | E20: Guido | F20: Stromberg | M20: 0 | N20: -1000 | O20: 0
A21: 912 | B21: Open | D21: Wetter | E21: Sabrina | F21: Billerbeck | M21: 0 | N21: -1000 | O21: 0
A22: 913 | B22: Open | D22: Pahlings | E22: Iris | F22: ConAction | M22: 0 | N22: -1000 | O22: 0
A23: 914 | B23: Open | D23: Schulz | E23: Tobias | M23: 0 | N23: -1000 | O23: 0
A24: 915 | B24: Open | D24: Enders | E24: Simon | F24: Billerbeck | M24: 0 | N24: -1000 | O24: 0
A25: 916 | B25: Open | D25: Szabowski | E25: Mara | F25: Billerbeck | M25: 0 | N25: -1000 | O25: 0
A26: 917 | B26: Open | D26: Pahlings | E26: Detlev | F26: ConAction | M26: 0 | N26: -1000 | O26: 0
A27: 918 | B27: Open | D27: Thoben | E27: Jonas | M27: 0 | N27: -1000 | O27: 0
A28: 407 | B28: Open | C28: Berlin | D28: Schneider | E28: Gabriele | F28: Joker Team | G28: 49.78 | H28: 50.31 | I28: 49.36 | J28: 39.81 | M28: 10.92 | N28: -10.92 | O28: 5
A29: 920 | B29: Open | D29: Frede | E29: John | M29: 0 | N29: -1000 | O29: 0
A30: 921 | B30: Open | D30: Niessen | E30: Nicolas | F30: Simmerath | M30: 0 | N30: -1000 | O30: 0
A31: 922 | B31: Open | D31: Paradowska | E31: Joana | F31: Mettingen | M31: 0 | N31: -1000 | O31: 0
A32: 923 | B32: Open | D32: Ricker | E32: Oliver | F32: Billerbeck | M32: 0 | N32: -1000 | O32: 0
A33: 924 | B33: Open | D33: Angenendt | E33: Philip | F33: Billerbeck | M33: 0 | N33: -1000 | O33: 0
A34: 925 | B34: Open | M34: 0 | N34: -1000 | O34: 0
A35: 926 | B35: Open | M35: 0 | N35: -1000 | O35: 0
A36: 927 | B36: Open | M36: 0 | N36: -1000 | O36: 0
A37: 928 | B37: Open | M37: 0 | N37: -1000 | O37: 0
M38: 0 | N38: -1000 | O38: 0
M39: 0 | N39: -1000 | O39: 0
M40: 0 | N40: -1000 | O40: 0
M41: =IF($G$4=1, IF(H41>1,(ABS(G41-H41)),0)+ IF(I41>1,(ABS(G41-I41)),0)+ IF(J41>1,(ABS(G41-J41)),0)+ IF(K41>1,(ABS(G41-K41)),0)+ IF(L41>1,(ABS(G41-L41)),0), IF(I41>1,(ABS(H41-I41)),0)+ IF(J41>1,(ABS(H41-J41)),0)+ IF(K41>1,(ABS(H41-K41)),0) ) -> 0 | N41: =IF(M41>0,M41*-1,-1000) -> -1000 | O41: =IF(M41>0,RANK(N41,N:N),0) -> 0
M42: 0 | N42: -1000 | O42: 0
M43: 0 | N43: -1000 | O43: 0
M44: 0 | N44: -1000 | O44: 0
M45: 0 | N45: -1000 | O45: 0
M46: 0 | N46: -1000 | O46: 0
M47: 0 | N47: -1000 | O47: 0
M48: 0 | N48: -1000 | O48: 0
M49: 0 | N49: -1000 | O49: 0
M50: 0 | N50: -1000 | O50: 0
M51: 0 | N51: -1000 | O51: 0
M52: 0 | N52: -1000 | O52: 0
M53: 0 | N53: -1000 | O53: 0
M54: 0 | N54: -1000 | O54: 0
M55: 0 | N55: -1000 | O55: 0
M56: 0 | N56: -1000 | O56: 0
M57: 0 | N57: -1000 | O57: 0
M58: 0 | N58: -1000 | O58: 0
M59: 0 | N59: -1000 | O59: 0
M60: 0 | N60: -1000 | O60: 0
M61: 0 | N61: -1000 | O61: 0
M62: 0 | N62: -1000 | O62: 0
M63: 0 | N63: -1000 | O63: 0
M64: 0 | N64: -1000 | O64: 0
M65: 0 | N65: -1000 | O65: 0
M66: 0 | N66: -1000 | O66: 0
M67: 0 | N67: -1000 | O67: 0
M68: 0 | N68: -1000 | O68: 0
M69: 0 | N69: -1000 | O69: 0
M70: 0 | N70: -1000 | O70: 0
M71: 0 | N71: -1000 | O71: 0
M72: 0 | N72: -1000 | O72: 0
M73: =IF($G$4=1, IF(H73>1,(ABS(G73-H73)),0)+ IF(I73>1,(ABS(G73-I73)),0)+ IF(J73>1,(ABS(G73-J73)),0)+ IF(K73>1,(ABS(G73-K73)),0)+ IF(L73>1,(ABS(G73-L73)),0), IF(I73>1,(ABS(H73-I73)),0)+ IF(J73>1,(ABS(H73-J73)),0)+ IF(K73>1,(ABS(H73-K73)),0) ) -> 0 | N73: =IF(M73>0,M73*-1,-1000) -> -1000 | O73: =IF(M73>0,RANK(N73,N:N),0) -> 0
M74: 0 | N74: -1000 | O74: 0
M75: 0 | N75: -1000 | O75: 0
M76: 0 | N76: -1000 | O76: 0
M77: 0 | N77: -1000 | O77: 0
M78: 0 | N78: -1000 | O78: 0
M79: 0 | N79: -1000 | O79: 0
M80: 0 | N80: -1000 | O80: 0
M81: 0 | N81: -1000 | O81: 0
M82: 0 | N82: -1000 | O82: 0
M83: 0 | N83: -1000 | O83: 0
M84: 0 | N84: -1000 | O84: 0
M85: 0 | N85: -1000 | O85: 0
M86: 0 | N86: -1000 | O86: 0
M87: 0 | N87: -1000 | O87: 0
M88: 0 | N88: -1000 | O88: 0
M89: 0 | N89: -1000 | O89: 0
M90: 0 | N90: -1000 | O90: 0
M91: 0 | N91: -1000 | O91: 0
M92: 0 | N92: -1000 | O92: 0
M93: 0 | N93: -1000 | O93: 0
M94: 0 | N94: -1000 | O94: 0
M95: 0 | N95: -1000 | O95: 0
M96: 0 | N96: -1000 | O96: 0
M97: 0 | N97: -1000 | O97: 0
M98: 0 | N98: -1000 | O98: 0
M99: 0 | N99: -1000 | O99: 0
M100: 0 | N100: -1000 | O100: 0
M101: 0 | N101: -1000 | O101: 0
M102: 0 | N102: -1000 | O102: 0
M103: 0 | N103: -1000 | O103: 0
M104: 0 | N104: -1000 | O104: 0
M105: =IF($G$4=1, IF(H105>1,(ABS(G105-H105)),0)+ IF(I105>1,(ABS(G105-I105)),0)+ IF(J105>1,(ABS(G105-J105)),0)+ IF(K105>1,(ABS(G105-K105)),0)+ IF(L105>1,(ABS(G105-L105)),0), IF(I105>1,(ABS(H105-I105)),0)+ IF(J105>1,(ABS(H105-J105)),0)+ IF(K105>1,(ABS(H105-K105)),0) ) -> 0 | N105: =IF(M105>0,M105*-1,-1000) -> -1000 | O105: =IF(M105>0,RANK(N105,N:N),0) -> 0
M106: 0 | N106: -1000 | O106: 0
M107: 0 | N107: -1000 | O107: 0
M108: 0 | N108: -1000 | O108: 0
M109: 0 | N109: -1000 | O109: 0
M110: 0 | N110: -1000 | O110: 0
M111: 0 | N111: -1000 | O111: 0
M112: 0 | N112: -1000 | O112: 0
M113: 0 | N113: -1000 | O113: 0
M114: 0 | N114: -1000 | O114: 0
M115: 0 | N115: -1000 | O115: 0
M116: 0 | N116: -1000 | O116: 0
M117: 0 | N117: -1000 | O117: 0
M118: 0 | N118: -1000 | O118: 0
M119: 0 | N119: -1000 | O119: 0
M120: 0 | N120: -1000 | O120: 0
M121: 0 | N121: -1000 | O121: 0
M122: 0 | N122: -1000 | O122: 0
M123: 0 | N123: -1000 | O123: 0
M124: 0 | N124: -1000 | O124: 0
M125: 0 | N125: -1000 | O125: 0
M126: 0 | N126: -1000 | O126: 0
M127: 0 | N127: -1000 | O127: 0
M128: 0 | N128: -1000 | O128: 0
M129: 0 | N129: -1000 | O129: 0
M130: 0 | N130: -1000 | O130: 0
M131: 0 | N131: -1000 | O131: 0
M132: 0 | N132: -1000 | O132: 0
M133: 0 | N133: -1000 | O133: 0
M134: 0 | N134: -1000 | O134: 0
M135: 0 | N135: -1000 | O135: 0
M136: 0 | N136: -1000 | O136: 0
M137: =IF($G$4=1, IF(H137>1,(ABS(G137-H137)),0)+ IF(I137>1,(ABS(G137-I137)),0)+ IF(J137>1,(ABS(G137-J137)),0)+ IF(K137>1,(ABS(G137-K137)),0)+ IF(L137>1,(ABS(G137-L137)),0), IF(I137>1,(ABS(H137-I137)),0)+ IF(J137>1,(ABS(H137-J137)),0)+ IF(K137>1,(ABS(H137-K137)),0) ) -> 0 | N137: =IF(M137>0,M137*-1,-1000) -> -1000 | O137: =IF(M137>0,RANK(N137,N:N),0) -> 0
M138: 0 | N138: -1000 | O138: 0
M139: 0 | N139: -1000 | O139: 0
M140: 0 | N140: -1000 | O140: 0
M141: 0 | N141: -1000 | O141: 0
M142: 0 | N142: -1000 | O142: 0
M143: 0 | N143: -1000 | O143: 0
M144: 0 | N144: -1000 | O144: 0
M145: 0 | N145: -1000 | O145: 0
M146: 0 | N146: -1000 | O146: 0
M147: 0 | N147: -1000 | O147: 0
M148: 0 | N148: -1000 | O148: 0
M149: 0 | N149: -1000 | O149: 0
M150: 0 | N150: -1000 | O150: 0
M151: 0 | N151: -1000 | O151: 0
M152: 0 | N152: -1000 | O152: 0
M153: 0 | N153: -1000 | O153: 0
M154: 0 | N154: -1000 | O154: 0
M155: 0 | N155: -1000 | O155: 0
M156: 0 | N156: -1000 | O156: 0
M157: 0 | N157: -1000 | O157: 0
M158: 0 | N158: -1000 | O158: 0
M159: 0 | N159: -1000 | O159: 0
M160: 0 | N160: -1000 | O160: 0
M161: 0 | N161: -1000 | O161: 0
M162: 0 | N162: -1000 | O162: 0
M163: 0 | N163: -1000 | O163: 0
M164: 0 | N164: -1000 | O164: 0
M165: 0 | N165: -1000 | O165: 0
M166: 0 | N166: -1000 | O166: 0
M167: 0 | N167: -1000 | O167: 0
M168: 0 | N168: -1000 | O168: 0
M169: =IF($G$4=1, IF(H169>1,(ABS(G169-H169)),0)+ IF(I169>1,(ABS(G169-I169)),0)+ IF(J169>1,(ABS(G169-J169)),0)+ IF(K169>1,(ABS(G169-K169)),0)+ IF(L169>1,(ABS(G169-L169)),0), IF(I169>1,(ABS(H169-I169)),0)+ IF(J169>1,(ABS(H169-J169)),0)+ IF(K169>1,(ABS(H169-K169)),0) ) -> 0 | N169: =IF(M169>0,M169*-1,-1000) -> -1000 | O169: =IF(M169>0,RANK(N169,N:N),0) -> 0
M170: 0 | N170: -1000 | O170: 0
M171: 0 | N171: -1000 | O171: 0
M172: 0 | N172: -1000 | O172: 0
M173: 0 | N173: -1000 | O173: 0
M174: 0 | N174: -1000 | O174: 0
M175: 0 | N175: -1000 | O175: 0
M176: 0 | N176: -1000 | O176: 0
M177: 0 | N177: -1000 | O177: 0
M178: 0 | N178: -1000 | O178: 0
M179: 0 | N179: -1000 | O179: 0
M180: 0 | N180: -1000 | O180: 0
M181: 0 | N181: -1000 | O181: 0
M182: 0 | N182: -1000 | O182: 0
M183: 0 | N183: -1000 | O183: 0
M184: 0 | N184: -1000 | O184: 0
M185: 0 | N185: -1000 | O185: 0
M186: 0 | N186: -1000 | O186: 0
M187: 0 | N187: -1000 | O187: 0
M188: 0 | N188: -1000 | O188: 0
M189: 0 | N189: -1000 | O189: 0
M190: 0 | N190: -1000 | O190: 0
M191: 0 | N191: -1000 | O191: 0
M192: 0 | N192: -1000 | O192: 0
M193: 0 | N193: -1000 | O193: 0
M194: 0 | N194: -1000 | O194: 0
M195: 0 | N195: -1000 | O195: 0
M196: 0 | N196: -1000 | O196: 0
M197: 0 | N197: -1000 | O197: 0
M198: 0 | N198: -1000 | O198: 0
M199: 0 | N199: -1000 | O199: 0
M200: 0 | N200: -1000 | O200: 0
M201: =IF($G$4=1, IF(H201>1,(ABS(G201-H201)),0)+ IF(I201>1,(ABS(G201-I201)),0)+ IF(J201>1,(ABS(G201-J201)),0)+ IF(K201>1,(ABS(G201-K201)),0)+ IF(L201>1,(ABS(G201-L201)),0), IF(I201>1,(ABS(H201-I201)),0)+ IF(J201>1,(ABS(H201-J201)),0)+ IF(K201>1,(ABS(H201-K201)),0) ) -> 0 | N201: =IF(M201>0,M201*-1,-1000) -> -1000 | O201: =IF(M201>0,RANK(N201,N:N),0) -> 0
M202: 0 | N202: -1000 | O202: 0
